fUSD/lending_fUSD_20250530
["ID","MTS","AMOUNT","RATE_DAILY","PERIOD"]
[363118875,1748589043622,-460.21654168,0.00021917,2]
[363118876,1748589043631,-420.0,0.00021917,2]
[363118877,1748589043641,-505.15987221,0.00021917,2]
[363118878,1748589043651,-420.0,0.00021917,2]
[363118879,1748589043660,-1619.08,0.00021917,2]
[363118880,1748589043669,-366.49575701,0.00021917,2]
[363118881,1748589043678,-153.95629476,0.00021917,2]
[363118882,1748589043687,-420.0,0.00021917,2]
[363118883,1748589043696,-500.0,0.00021917,2]
[363118884,1748589043705,-420.0,0.00021917,2]
[363118885,1748589043717,-500.68,0.00021917,2]
[363118886,1748589043730,-599.26,0.00021917,2]
[363118887,1748589043739,-151.0,0.00021917,2]
[363118888,1748589043749,-505.93988734,0.00021917,2]
[363118889,1748589043758,-5021.40904304,0.00021917,2]
[363118890,1748589043767,-514.1424552,0.00021917,2]
[363118891,1748589043777,-420.0,0.00021917,2]
[363118892,1748589043786,-423.50120856,0.00021917,2]
[363118893,1748589043796,-622.06,0.00021917,2]
[363118894,1748589043805,-420.0,0.00021917,2]
[363118895,1748589043816,-420.0,0.00021917,2]
[363118896,1748589043826,-420.0,0.00021917,2]
[363118897,1748589043838,-420.0,0.00021917,2]
[363118898,1748589043848,-833.18,0.00021917,2]
[363118899,1748589043860,-420.0,0.00021917,2]
[363118900,1748589043869,-422.95109081,0.00021917,2]
[363118901,1748589043878,-500.0,0.00021917,2]
[363118902,1748589043888,-420.0,0.00021917,2]
[363118903,1748589043897,-420.0,0.00021917,2]
[363118904,1748589043907,-271.72721888,0.00021917,2]
[363118905,1748589043916,-423.00893426,0.00021917,2]
[363118906,1748589043925,-420.0,0.00021917,2]
[363118907,1748589043935,-420.0,0.00021917,2]
[363118908,1748589043944,-420.0,0.00021917,2]
[363118909,1748589043955,-185.44131668,0.00021917,2]
[363118910,1748589043969,-420.0,0.00021917,2]
[363118911,1748589043989,-420.0,0.00021917,2]
[363118912,1748589044000,-426.3387184,0.00021917,2]
[363118913,1748589044010,-420.0,0.00021917,2]
[363118914,1748589044020,-767.86,0.00021917,2]
[363118915,1748589044030,-420.0,0.00021917,2]
[363118916,1748589044041,-500.0,0.00021917,2]
[363118917,1748589044051,-420.0,0.00021917,2]
[363118918,1748589044060,-420.0,0.00021917,2]
[363118919,1748589044069,-420.0,0.00021917,2]
[363118920,1748589044078,-533.09,0.00021917,2]
[363118921,1748589044087,-1386.92,0.00021917,2]
[363118922,1748589044097,-1139.47,0.00021917,2]
[363118923,1748589044106,-420.0,0.00021917,2]
[363118924,1748589044115,-420.0,0.00021917,2]
[363118925,1748589044125,-420.0,0.00021917,2]
[363118926,1748589044134,-502.03639381,0.00021917,2]
[363118927,1748589044143,-420.0,0.00021917,2]
[363118928,1748589044153,-468.42,0.00021917,2]
[363118929,1748589044162,-516.17695283,0.00021917,2]
[363118930,1748589044172,-420.0,0.00021917,2]
[363118931,1748589044181,-500.0,0.00021917,2]
[363118932,1748589044191,-1245.49,0.00021917,2]
[363118933,1748589044200,-1083.99,0.00021917,2]
[363118934,1748589044209,-425.35899265,0.00021917,2]
[363118935,1748589044220,-1354.72,0.00021917,2]
[363118936,1748589044229,-500.0,0.00021917,2]
[363118937,1748589044240,-424.2585971,0.00021917,2]
[363118938,1748589044251,-1295.22,0.00021917,2]
[363118939,1748589044261,-420.0,0.00021917,2]
[363118940,1748589044271,-536.67343719,0.00021917,2]
[363118941,1748589044280,-420.0,0.00021917,2]
[363118942,1748589044289,-420.0,0.00021917,2]
[363118943,1748589044299,-420.0,0.00021917,2]
[363118944,1748589044309,-618.37,0.00021917,2]
[363118945,1748589044318,-420.0,0.00021917,2]
[363118946,1748589044329,-500.0,0.00021917,2]
[363118947,1748589044339,-505.98,0.00021917,2]
[363118948,1748589044349,-504.42782837,0.00021917,2]
[363118949,1748589044359,-1588.72,0.00021917,2]
[363118950,1748589044370,-420.0,0.00021917,2]
[363118951,1748589044381,-560.2,0.00021917,2]
[363118952,1748589044390,-171.33117233,0.00021917,2]
[363118953,1748589044400,-500.0,0.00021917,2]
[363118954,1748589044410,-420.0,0.00021917,2]
[363118955,1748589044419,-420.0,0.00021917,2]
[363118956,1748589044429,-420.0,0.00021917,2]
[363118957,1748589044439,-4488.96,0.00021917,2]
[363118958,1748589044450,-1084.87,0.00021917,2]
[363118959,1748589044460,-420.0,0.00021917,2]
[363118960,1748589044471,-420.0,0.00021917,2]
[363118961,1748589044480,-420.0,0.00021917,2]
[363118962,1748589044489,-485.31,0.00021917,2]
[363118963,1748589044499,-420.0,0.00021917,2]
[363118964,1748589044508,-420.0,0.00021917,2]
[363118965,1748589044518,-460.38,0.00021917,2]
[363118966,1748589044527,-683.88,0.00021917,2]
[363118967,1748589044537,-420.0,0.00021917,2]
[363118968,1748589044547,-420.0,0.00021917,2]
[363118969,1748589044557,-2908.62,0.00021917,2]
[363118970,1748589044566,-420.0,0.00021917,2]
[363118971,1748589044576,-420.0,0.00021917,2]
[363118972,1748589044585,-420.0,0.00021917,2]
[363118973,1748589044595,-420.0,0.00021917,2]
[363118974,1748589044673,-500.0,0.00021917,2]
[363118975,1748589044683,-420.0,0.00021917,2]
[363118976,1748589044692,-582.96,0.00021917,2]
[363118977,1748589044702,-420.0,0.00021917,2]
[363118978,1748589044714,-500.0,0.00021917,2]
[363118979,1748589044724,-420.0,0.00021917,2]
[363118980,1748589044733,-1178.55,0.00021917,2]
[363118981,1748589044741,-420.0,0.00021917,2]
[363118982,1748589044751,-151.0,0.00021917,2]
[363118983,1748589044760,-420.0,0.00021917,2]
[363118984,1748589044770,-500.0,0.00021917,2]
[363118985,1748589044780,-420.0,0.00021917,2]
[363118986,1748589044789,-6061.43,0.00021917,2]
[363118987,1748589044798,-420.0,0.00021917,2]
[363118988,1748589044808,-475.62,0.00021917,2]
[363118989,1748589044817,-426.45958641,0.00021917,2]
[363118990,1748589044826,-3457.91,0.00021917,2]
[363118991,1748589044835,-708.45,0.00021917,2]
[363118992,1748589044845,-151.0,0.00021917,2]
[363118993,1748589044854,-725.9,0.00021917,2]
[363118994,1748589044863,-420.0,0.00021917,2]
[363118995,1748589044872,-420.0,0.00021917,2]
[363118996,1748589044881,-420.0,0.00021917,2]
[363118997,1748589044891,-420.0,0.00021917,2]
[363118998,1748589044900,-420.0,0.00021917,2]
[363118999,1748589044909,-557.36,0.00021917,2]
[363119000,1748589044919,-1151.3,0.00021917,2]
[363119001,1748589044928,-420.0,0.00021917,2]
[363119002,1748589044937,-500.0,0.00021917,2]
[363119003,1748589044947,-420.0,0.00021917,2]
[363119004,1748589044956,-420.0,0.00021917,2]
[363119005,1748589044967,-420.0,0.00021917,2]
[363119006,1748589044977,-365.67340357,0.00021917,2]
[363119007,1748589044986,-630.57,0.00021917,2]
[363119008,1748589044996,-420.0,0.00021917,2]
[363119009,1748589045005,-10961.74,0.00021917,2]
[363119010,1748589045014,-499.4,0.00021917,2]
[363119011,1748589045024,-420.0,0.00021917,2]
[363119012,1748589045033,-420.0,0.00021917,2]
[363119013,1748589045043,-557.85,0.00021917,2]
[363119014,1748589045052,-420.0,0.00021917,2]
[363119015,1748589045060,-420.0,0.00021917,2]
[363119016,1748589045070,-3268.18,0.00021917,2]
[363119017,1748589045079,-500.0,0.00021917,2]
[363119018,1748589045088,-2495.02,0.00021917,2]
[363119019,1748589045098,-470.07,0.00021917,2]
[363119020,1748589045107,-426.83256011,0.00021917,2]
[363119021,1748589045118,-420.0,0.00021917,2]
[363119022,1748589045128,-151.0,0.00021917,2]
[363119023,1748589045137,-420.0,0.00021917,2]
[363119024,1748589045147,-420.0,0.00021917,2]
[363119025,1748589045157,-420.0,0.00021917,2]
[363119026,1748589045166,-544.36,0.00021917,2]
[363119027,1748589045176,-420.0,0.00021917,2]
[363119028,1748589045186,-5330.97,0.00021917,2]
[363119029,1748589045195,-420.0,0.00021917,2]
[363119030,1748589045204,-1053.28,0.00021917,2]
[363119031,1748589045216,-521.59,0.00021917,2]
[363119032,1748589045226,-420.0,0.00021917,2]
[363119033,1748589045235,-420.0,0.00021917,2]
[363119034,1748589045244,-630.87,0.00021917,2]
[363119035,1748589045253,-1126.85,0.00021917,2]
[363119036,1748589045263,-420.0,0.00021917,2]
[363119037,1748589045272,-420.0,0.00021917,2]
[363119038,1748589045283,-500.0,0.00021917,2]
[363119039,1748589045292,-420.0,0.00021917,2]
[363119040,1748589045301,-420.0,0.00021917,2]
[363119041,1748589045311,-420.0,0.00021917,2]
[363119042,1748589045320,-420.0,0.00021917,2]
[363119043,1748589045331,-420.0,0.00021917,2]
[363119044,1748589045340,-500.0,0.00021917,2]
[363119045,1748589045350,-421.78,0.00021917,2]
[363119046,1748589045359,-420.0,0.00021917,2]
[363119047,1748589045371,-500.0,0.00021917,2]
[363119048,1748589045381,-151.0,0.00021917,2]
[363119049,1748589045390,-531.01,0.00021917,2]
[363119050,1748589045401,-1365.63,0.00021917,2]
[363119051,1748589045413,-420.0,0.00021917,2]
[363119052,1748589045424,-420.0,0.00021917,2]
[363119053,1748589045433,-1158.13,0.00021917,2]
[363119054,1748589045443,-500.0,0.00021917,2]
[363119055,1748589045454,-420.0,0.00021917,2]
[363119056,1748589045465,-1562.02,0.00021917,2]
[363119057,1748589045475,-420.0,0.00021917,2]
[363119058,1748589045484,-424.29767535,0.00021917,2]
[363119059,1748589045493,-156.041516,0.00021917,2]
[363119060,1748589045502,-1735.831052,0.00021917,2]
[363119061,1748589045511,-613.75,0.00021917,2]
[363119062,1748589045522,-992.76,0.00021917,2]
[363119063,1748589045532,-502.16121394,0.00021917,2]
[363119064,1748589045542,-12019.32,0.00021917,2]
[363119065,1748589045553,-646.81,0.00021917,2]
[363119066,1748589045565,-420.0,0.00021917,2]
[363119067,1748589045574,-500.0,0.00021917,2]
[363119068,1748589045584,-500.0,0.00021917,2]
[363119069,1748589045595,-1516.44676,0.00021917,2]
[363119070,1748589045604,-1076.84,0.00021917,2]
[363119071,1748589045613,-151.850064,0.00021917,2]
[363119072,1748589045623,-671.17,0.00021917,2]
[363119073,1748589045632,-420.0,0.00021917,2]
[363119074,1748589045641,-500.0,0.00021917,2]
[363119075,1748589045651,-500.0,0.00021917,2]
[363119076,1748589045660,-500.0,0.00021917,2]
[363119077,1748589045669,-420.0,0.00021917,2]
[363119078,1748589045679,-1474.03,0.00021917,2]
[363119079,1748589045688,-1054.67,0.00021917,2]
[363119080,1748589045697,-420.0,0.00021917,2]
[363119081,1748589045706,-420.0,0.00021917,2]
[363119082,1748589045716,-420.0,0.00021917,2]
[363119083,1748589045725,-434.43,0.00021917,2]
[363119084,1748589045735,-969.06,0.00021917,2]
[363119085,1748589045744,-655.44,0.00021917,2]
[363119086,1748589045753,-420.0,0.00021917,2]
[363119087,1748589045762,-442.55282783,0.00021917,2]
[363119088,1748589045772,-420.0,0.00021917,2]
[363119089,1748589045781,-420.0,0.00021917,2]
[363119090,1748589045790,-1521.08,0.00021917,2]
[363119091,1748589045799,-476.01,0.00021917,2]
[363119092,1748589045809,-420.0,0.00021917,2]
[363119093,1748589045819,-13091.21,0.00021917,2]
[363119094,1748589045829,-1177.34,0.00021917,2]
[363119095,1748589045839,-1760.01,0.00021917,2]
[363119096,1748589045850,-1174.32,0.00021917,2]
[363119097,1748589045859,-500.0,0.00021917,2]
[363119098,1748589045869,-420.0,0.00021917,2]
[363119099,1748589045878,-420.0,0.00021917,2]
[363119100,1748589045886,-420.0,0.00021917,2]
[363119101,1748589045896,-1184.4,0.00021917,2]
[363119102,1748589045906,-2114.93,0.00021917,2]
[363119103,1748589045915,-420.0,0.00021917,2]
[363119104,1748589045924,-420.0,0.00021917,2]
[363119105,1748589045933,-2635.04,0.00021917,2]
[363119106,1748589045944,-5807.35,0.00021917,2]
[363119107,1748589045955,-420.0,0.00021917,2]
[363119108,1748589045965,-646.72,0.00021917,2]
[363119109,1748589045975,-682.64,0.00021917,2]
[363119110,1748589045984,-505.28940863,0.00021917,2]
[363119111,1748589045993,-500.0,0.00021917,2]
[363119112,1748589046002,-894.58,0.00021917,2]
[363119113,1748589046017,-420.0,0.00021917,2]
[363119114,1748589046033,-679.92,0.00021917,2]
[363119115,1748589046043,-828.16,0.00021917,2]
[363119116,1748589046052,-1394.0,0.00021917,2]
[363119118,1748589046062,-151.0,0.00021917,2]
[363119119,1748589046071,-420.0,0.00021917,2]
[363119120,1748589046080,-885.55,0.00021917,2]
[363119121,1748589046089,-1723.09,0.00021917,2]
[363119122,1748589046099,-420.0,0.00021917,2]
[363119123,1748589046108,-420.0,0.00021917,2]
[363119124,1748589046117,-151.0,0.00021917,2]
[363119125,1748589046127,-500.0,0.00021917,2]
[363119126,1748589046136,-751.87,0.00021917,2]
[363119127,1748589046146,-7697.37,0.00021917,2]
[363119128,1748589046155,-500.0,0.00021917,2]
[363119129,1748589046165,-1721.15,0.00021917,2]
[363119130,1748589046174,-151.29069845,0.00021917,2]
[363119131,1748589046184,-420.0,0.00021917,2]
[363119132,1748589046194,-420.0,0.00021917,2]
[363119133,1748589046203,-150.76906654,0.00021917,2]
[363119134,1748589046212,-9679.1,0.00021917,2]
[363119135,1748589046223,-151.0,0.00021917,2]
[363119136,1748589046231,-167.43340892,0.00021917,2]
[363119137,1748589046240,-238.75968,0.00021917,2]
[363119138,1748589046249,-1454.98,0.00021917,2]
[363119139,1748589046258,-675.35,0.00021917,2]
[363119140,1748589046267,-500.0,0.00021917,2]
[363119141,1748589046277,-151.0,0.00021917,2]
[363119142,1748589046286,-153.32218622,0.00021917,2]
[363119143,1748589046295,-420.0,0.00021917,2]
[363119144,1748589046304,-11487.35,0.00021917,2]
[363119145,1748589046315,-500.0,0.00021917,2]
[363119146,1748589046324,-420.0,0.00021917,2]
[363119147,1748589046333,-660.58,0.00021917,2]
[363119148,1748589046342,-546.38,0.00021917,2]
[363119149,1748589046351,-154.921947,0.00021917,2]
[363119150,1748589046361,-151.0,0.00021917,2]
[363119151,1748589046371,-427.44,0.00021917,2]
[363119152,1748589046382,-500.0,0.00021917,2]
[363119153,1748589046392,-420.0,0.00021917,2]
[363119154,1748589046403,-420.0,0.00021917,2]
[363119155,1748589046414,-529.69,0.00021917,2]
[363119156,1748589046423,-782.0,0.00021917,2]
[363119157,1748589046433,-500.0,0.00021917,2]
[363119158,1748589046443,-420.0,0.00021917,2]
[363119159,1748589046453,-420.0,0.00021917,2]
[363119160,1748589046462,-403.29972029,0.00021917,2]
[363119161,1748589046474,-500.0,0.00021917,2]
[363119162,1748589046484,-437.18,0.00021917,2]
[363119163,1748589046493,-35606.47,0.00021917,2]
[363119164,1748589046503,-1026.43,0.00021917,2]
[363119165,1748589046512,-931.02,0.00021917,2]
[363119166,1748589046522,-153.35827,0.00021917,2]
[363119167,1748589046531,-1376.61,0.00021917,2]
[363119168,1748589046540,-1875.56,0.00021917,2]
[363119169,1748589046549,-719.14,0.00021917,2]
[363119170,1748589046558,-500.0,0.00021917,2]
[363119171,1748589046568,-2294.08,0.00021917,2]
[363119172,1748589046578,-420.0,0.00021917,2]
[363119173,1748589046587,-1033.57,0.00021917,2]
[363119174,1748589046597,-247.152437,0.00021917,2]
[363119175,1748589046606,-420.0,0.00021917,2]
[363119176,1748589046615,-420.0,0.00021917,2]
[363119177,1748589046624,-420.0,0.00021917,2]
[363119178,1748589046634,-420.0,0.00021917,2]
[363119179,1748589046643,-420.0,0.00021917,2]
[363119180,1748589046652,-420.0,0.00021917,2]
[363119181,1748589046661,-961.38,0.00021917,2]
[363119182,1748589046674,-163.70265355,0.00021917,2]
[363119183,1748589046683,-833.98,0.00021917,2]
[363119184,1748589046692,-420.0,0.00021917,2]
[363119185,1748589046701,-614.43,0.00021917,2]
[363119186,1748589046711,-1707.36,0.00021917,2]
[363119187,1748589046722,-1294.71,0.00021917,2]
[363119188,1748589046732,-660.31,0.00021917,2]
[363119189,1748589046741,-4637.04,0.00021917,2]
[363119190,1748589046750,-2172.14,0.00021917,2]
[363119191,1748589046759,-488.79,0.00021917,2]
[363119192,1748589046768,-500.0,0.00021917,2]
[363119193,1748589046777,-420.0,0.00021917,2]
[363119194,1748589046787,-822.72,0.00021917,2]
[363119195,1748589046796,-420.0,0.00021917,2]
[363119196,1748589046805,-923.36,0.00021917,2]
[363119197,1748589046815,-420.0,0.00021917,2]
[363119198,1748589046824,-3254.87,0.00021917,2]
[363119199,1748589046833,-1033.41,0.00021917,2]
[363119200,1748589046842,-688.46,0.00021917,2]
[363119201,1748589046852,-420.0,0.00021917,2]
[363119202,1748589046861,-445.65,0.00021917,2]
[363119203,1748589046871,-1912.55,0.00021917,2]
[363119204,1748589046880,-420.0,0.00021917,2]
[363119205,1748589046889,-167.6910753,0.00021917,2]
[363119206,1748589046898,-111533.51,0.00021917,2]
[363119207,1748589046907,-150.0,0.00021917,2]
[363119208,1748589046916,-420.0,0.00021917,2]
[363119209,1748589046926,-502.86583596,0.00021917,2]
[363119210,1748589046935,-757.91,0.00021917,2]
[363119211,1748589046944,-3413.25,0.00021917,2]
[363119212,1748589046953,-420.0,0.00021917,2]
[363119213,1748589046963,-150.0,0.00021917,2]
[363119214,1748589046973,-1706.23,0.00021917,2]
[363119215,1748589046982,-735.24,0.00021917,2]
[363119216,1748589046991,-3425.12,0.00021917,2]
[363119217,1748589047001,-420.0,0.00021917,2]
[363119218,1748589047010,-150.0,0.00021917,2]
[363119219,1748589047019,-518.21428543,0.00021917,2]
[363119220,1748589047028,-420.0,0.00021917,2]
[363119221,1748589047038,-708.29,0.00021917,2]
[363119222,1748589047047,-583.0,0.00021917,2]
[363119223,1748589047056,-420.0,0.00021917,2]
[363119224,1748589047067,-3544.15,0.00021917,2]
[363119225,1748589047076,-420.0,0.00021917,2]
[363119226,1748589047086,-420.0,0.00021917,2]
[363119227,1748589047095,-887.09,0.00021917,2]
[363119228,1748589047104,-648.19,0.00021917,2]
[363119229,1748589047113,-500.0,0.00021917,2]
[363119230,1748589047123,-420.0,0.00021917,2]
[363119231,1748589047133,-673.48,0.00021917,2]
[363119232,1748589047142,-420.0,0.00021917,2]
[363119233,1748589047152,-500.0,0.00021917,2]
[363119234,1748589047161,-1135.98,0.00021917,2]
[363119235,1748589047170,-1202.51,0.00021917,2]
[363119237,1748589047179,-880.13,0.00021917,2]
[363119239,1748589047190,-7716.17,0.00021917,2]
[363119240,1748589047210,-500.0,0.00021917,2]
[363119242,1748589047221,-500.0,0.00021917,2]
[363119243,1748589047231,-500.0,0.00021917,2]
[363119244,1748589047241,-1257.76,0.00021917,2]
[363119245,1748589047250,-500.0,0.00021917,2]
[363119246,1748589047259,-13331.52,0.00021917,2]
[363119247,1748589047269,-500.0,0.00021917,2]
[363119248,1748589047278,-500.0,0.00021917,2]
[363119249,1748589047288,-199.4256575,0.00021917,2]
[363119250,1748589047297,-2869.84,0.00021917,2]
[363119251,1748589047307,-420.0,0.00021917,2]
[363119252,1748589047316,-1620.76,0.00021917,2]
[363119253,1748589047327,-501.66471748,0.00021917,2]
[363119254,1748589047337,-420.0,0.00021917,2]
[363119255,1748589047346,-975.58,0.00021917,2]
[363119256,1748589047356,-420.0,0.00021917,2]
[363119257,1748589047366,-974.1,0.00021917,2]
[363119258,1748589047379,-1025.35,0.00021917,2]
[363119259,1748589047389,-559.96,0.00021917,2]
[363119260,1748589047400,-1315.26,0.00021917,2]
[363119261,1748589047410,-500.0,0.00021917,2]
[363119262,1748589047420,-2066.9,0.00021917,2]
[363119263,1748589047430,-697.41,0.00021917,2]
[363119264,1748589047439,-6926.33,0.00021917,2]
[363119265,1748589047450,-449.77,0.00021917,2]
[363119266,1748589047460,-10179.48,0.00021917,2]
[363119267,1748589047471,-500.0,0.00021917,2]
[363119268,1748589047481,-500.0,0.00021917,2]
[363119269,1748589047491,-432.2,0.00021917,2]
[363119270,1748589047501,-500.0,0.00021917,2]
[363119271,1748589047511,-4526.06,0.00021917,2]
[363119272,1748589047521,-420.0,0.00021917,2]
[363119273,1748589047531,-997.87,0.00021917,2]
[363119274,1748589047541,-953.05,0.00021917,2]
[363119275,1748589047551,-568.64442179,0.00021917,2]
[363119276,1748589047561,-3229.35,0.00021917,2]
[363119277,1748589047572,-500.0,0.00021917,2]
[363119278,1748589047581,-1986.47,0.00021917,2]
[363119279,1748589047593,-420.0,0.00021917,2]
[363119280,1748589047603,-1853.26,0.00021917,2]
[363119281,1748589047612,-540.20194575,0.00021917,2]
[363119282,1748589047623,-504.06406393,0.00021917,2]
[363119283,1748589047633,-513.97,0.00021917,2]
[363119284,1748589047642,-420.0,0.00021917,2]
[363119285,1748589047652,-3531.94,0.00021917,2]
[363119286,1748589047662,-420.0,0.00021917,2]
[363119287,1748589047671,-483.12,0.00021917,2]
[363119288,1748589047681,-420.0,0.00021917,2]
[363119289,1748589047691,-1509.07,0.00021917,2]
[363119290,1748589047701,-5737.87,0.00021917,2]
[363119291,1748589047711,-8128.2,0.00021917,2]
[363119292,1748589047722,-3865.57,0.00021917,2]
[363119293,1748589047732,-597.22,0.00021917,2]
[363119294,1748589047742,-843.43,0.00021917,2]
[363119295,1748589047751,-1702.6,0.00021917,2]
[363119296,1748589047761,-12003.21,0.00021917,2]
[363119297,1748589047771,-500.0,0.00021917,2]
[363119298,1748589047781,-420.0,0.00021917,2]
[363119299,1748589047791,-420.0,0.00021917,2]
[363119300,1748589047801,-794.82,0.00021917,2]
[363119301,1748589047811,-420.0,0.00021917,2]
[363119302,1748589047822,-2278.347157,0.00021917,2]
[363119303,1748589047832,-420.0,0.00021917,2]
[363119304,1748589047842,-1238.07,0.00021917,2]
[363119305,1748589047852,-1477.99,0.00021917,2]
[363119306,1748589047863,-585.89,0.00021917,2]
[363119307,1748589047873,-948.62,0.00021917,2]
[363119308,1748589047883,-420.0,0.00021917,2]
[363119309,1748589047895,-1537.0,0.00021917,2]
[363119310,1748589047905,-500.0,0.00021917,2]
[363119311,1748589047915,-500.0,0.00021917,2]
[363119312,1748589047925,-420.0,0.00021917,2]
[363119313,1748589047935,-2278.347157,0.00021917,2]
[363119314,1748589047945,-420.0,0.00021917,2]
[363119315,1748589047955,-3305.3,0.00021917,2]
[363119316,1748589047965,-753.85,0.00021917,2]
[363119317,1748589047974,-420.0,0.00021917,2]
[363119318,1748589047983,-801.59,0.00021917,2]
[363119319,1748589047992,-783.57,0.00021917,2]
[363119320,1748589048002,-24256.54,0.00021917,2]
[363119321,1748589048011,-1320.38,0.00021917,2]
[363119322,1748589048020,-420.0,0.00021917,2]
[363119323,1748589048030,-420.0,0.00021917,2]
[363119324,1748589048040,-420.0,0.00021917,2]
[363119325,1748589048050,-2077.27,0.00021917,2]
[363119326,1748589048060,-500.0,0.00021917,2]
[363119327,1748589048070,-1509.28,0.00021917,2]
[363119328,1748589048080,-500.0,0.00021917,2]
[363119329,1748589048090,-420.0,0.00021917,2]
[363119330,1748589048100,-1000.33,0.00021917,2]
[363119331,1748589048110,-1566.57,0.00021917,2]
[363119332,1748589048120,-420.0,0.00021917,2]
[363119333,1748589048131,-420.0,0.00021917,2]
[363119334,1748589048141,-420.0,0.00021917,2]
[363119335,1748589048151,-420.0,0.00021917,2]
[363119336,1748589048161,-500.0,0.00021917,2]
[363119337,1748589048171,-420.0,0.00021917,2]
[363119338,1748589048182,-275.77848789,0.00021917,2]
[363119339,1748589048193,-420.0,0.00021917,2]
[363119340,1748589048204,-815.01,0.00021917,2]
[363119341,1748589048215,-1070.6,0.00021917,2]
[363119342,1748589048225,-500.0,0.00021917,2]
[363119343,1748589048235,-690.62,0.00021917,2]
[363119344,1748589048246,-151.0,0.00021917,2]
[363119345,1748589048257,-500.0,0.00021917,2]
[363119346,1748589048267,-476.00454792,0.00021917,2]
[363119347,1748589048278,-2715.95,0.00021917,2]
[363119348,1748589048288,-420.0,0.00021917,2]
[363119349,1748589048298,-4753.93,0.00021917,2]
[363119350,1748589048309,-4275.41,0.00021917,2]
[363119351,1748589048319,-420.0,0.00021917,2]
[363119352,1748589048330,-164.05034542,0.00021917,2]
[363119353,1748589048340,-420.0,0.00021917,2]
[363119354,1748589048351,-500.0,0.00021917,2]
[363119355,1748589048362,-4294.83,0.00021917,2]
[363119357,1748589048376,-500.0,0.00021917,2]
[363119358,1748589048386,-651.77,0.00021917,2]
[363119359,1748589048396,-978.82,0.00021917,2]
[363119360,1748589048407,-1790.05,0.00021917,2]
[363119361,1748589048418,-1050.97,0.00021917,2]
[363119362,1748589048428,-1131.81,0.00021917,2]
[363119363,1748589048439,-500.0,0.00021917,2]
[363119364,1748589048448,-1464.38,0.00021917,2]
[363119365,1748589048459,-500.0,0.00021917,2]
[363119366,1748589048471,-475.5,0.00021917,2]
[363119367,1748589048482,-420.0,0.00021917,2]
[363119368,1748589048492,-793.16,0.00021917,2]
[363119369,1748589048503,-507.34,0.00021917,2]
[363119370,1748589048513,-3714.84,0.00021917,2]
[363119371,1748589048524,-21985.04,0.00021917,2]
[363119372,1748589048534,-420.0,0.00021917,2]
[363119373,1748589048545,-2974.17,0.00021917,2]
[363119374,1748589048555,-420.0,0.00021917,2]
[363119375,1748589048565,-151.0,0.00021917,2]
[363119376,1748589048575,-1486.8,0.00021917,2]
[363119377,1748589048586,-1108.27,0.00021917,2]
[363119378,1748589048597,-1098.15,0.00021917,2]
[363119379,1748589048607,-165.81959145,0.00021917,2]